[Event "Cracovia Festival-A 2023"]
[Site "Krakow"]
[Date "2023.12.31"]
[Round "5.41"]
[White "Warchol, Kamil"]
[Black "Hryharovich, Aliaksei"]
[Result "1-0"]
[ECO "B12"]
[WhiteElo "2108"]
[BlackElo "2195"]
[Annotator "RC"]
[PlyCount "115"]
[EventDate "2023.12.24"]
[EventType "swiss"]
[EventCountry "POL"]
[SourceTitle "playchess.com"]
[Source "ChessBase"]
[SourceQuality "1"]
[TimeControl "40/5400+30:1800+30"]

1. e4 {[%emt 0:00:05]} c6 {[%emt 0:00:23]} 2. d4 {[%emt 0:00:39]} d5 {[%emt 0:00:15]} 3. e5 {[%emt 0:00:20]} Bf5 {[%emt 0:00:14]} 4. Nc3 {[%emt 0:00:22]} e6 {[%emt 0:01:47]} 5. g4 {[%emt 0:00:34]} Bg6 {[%emt 0:00:12]} 6. Nge2 {[%emt 0:00:37]} c5 {[%emt 0:01:55]} 7. h4 {[%emt 0:01:22]} h6 {[%emt 0:09:32]} 8. Be3 {[%emt 0:11:48]} cxd4 {[%emt 0:11:59]} 9. Nxd4 {[%emt 0:08:01]} Ne7 {[%emt 0:05:36]} 10. f4 {[%emt 0:03:57]} a6 {[%emt 0:25:01]} 11. Bh3 {[%emt 0:06:31]} Nbc6 {[%emt 0:08:41]} 12. Qe2 {[%emt 0:15:01]} Nxd4 {[%emt 0:01:35]} 13. Bxd4 {[%emt 0:00:38]} Nc6 {[%emt 0:00:30]} 14. Bf2 {[%emt 0:03:52]} Bb4 {[%emt 0:07:35]} 15. O-O {[%emt 0:06:21]} Bxc3 {[%emt 0:05:08]} 16. bxc3 {[%emt 0:01:17]} Be4 {[%emt 0:00:16]} 17. c4 {[%emt 0:06:22]} Qa5 {[%emt 0:05:09]} 18. cxd5 {[%emt 0:04:39]} exd5 {[%emt 0:01:00]} 19. Bg2 {[%emt 0:00:55]} Bxg2 {[%emt 0:01:50]} 20. Kxg2 {[%emt 0:00:33]} O-O {[%emt 0:05:09]} 21. Rfd1 {[%emt 0:03:14]} Rad8 {[%emt 0:03:44]} 22. Qf3 {[%emt 0:02:54]} Qa4 {[%emt 0:01:17]} 23. Rab1 {[%emt 0:03:15]} b5 {[%emt 0:01:37]} 24. Rb3 {[%emt 0:01:13]} Qxa2 {[%emt 0:01:25]} 25. Ra3 {[%emt 0:00:48]} Qb2 {[%emt 0:00:15]} 26. Rb3 {[%emt 0:01:02]} Qa2 {[%emt 0:00:05]} 27. Qc3 {[%emt 0:01:46]} Qa4 {[%emt 0:00:30]} 28. Qxc6 {[%emt 0:01:26]} Qxf4 {[%emt 0:00:08]} 29. Rd4 {[%emt 0:04:39]} Qxe5 {[%emt 0:00:09]} 30. Rf3 {[%emt 0:02:13]} Rc8 {[%emt 0:00:58]} 31. Qxd5 {[%emt 0:02:34]} Qxd5 {[%emt 0:00:15]} 32. Rxd5 {[%emt 0:00:01]} Rxc2 {[%emt 0:00:11]} 33. Rd7 {[%emt 0:03:34]} a5 {[%emt 0:01:12]} 34. Rf5 {[%emt 0:02:04]} a4 {[%emt 0:01:26]} 35. Rxb5 {[%emt 0:00:41]} Ra8 {[%emt 0:00:27]} 36. Rbb7 {[%emt 0:02:06]} a3 {[%emt 0:00:08]} 37. Ra7 {[%emt 0:00:29]} Rxa7 {[%emt 0:00:32]} 38. Rxa7 {[%emt 0:00:02]} a2 {[%emt 0:00:08]} 39. Kf3 {[%emt 0:00:17]} h5 {[%emt 0:01:07]} 40. g5 {[%emt 0:00:00]} Kh7 {[%emt 0:00:00]} 41. Bd4 {[%emt 0:04:42]} Kg6 {[%emt 0:18:23]} 42. Kf4 {[%emt 0:02:36]} Rd2 {[%emt 0:04:50]} 43. Ra6+ {[%emt 0:01:20]} Kh7 {[%emt 0:01:34]} 44. Be5 {[%emt 0:02:09]} Rg2 {[%emt 0:06:25]} 45. Kf3 {[%emt 0:01:20]} Rd2 {[%emt 0:00:22]} 46. g6+ {[%emt 0:02:06]} fxg6 {[%emt 0:00:07]} 47. Ra7 {[%emt 0:00:06]} Rd3+ {[%emt 0:00:42]} 48. Kf4 {[%emt 0:01:16]} Rh3 {[%emt 0:00:33]} 49. Kg5 {[%emt 0:02:00]} Re3 {[%emt 0:01:42]} 50. Rxg7+ {[%emt 0:02:34]} Kh8 {[%emt 0:00:12]} 51. Bf6 {[%emt 0:01:06]} Rg3+ {[%emt 0:01:14]} 52. Kh6 {[%emt 0:01:05]} Rf3 {[%emt 0:00:33]} 53. Ra7+ {[%emt 0:00:42]} Kg8 {[%emt 0:00:16]} 54. Kxg6 {[%emt 0:00:31]} Rg3+ {[%emt 0:00:20]} 55. Bg5 {[%emt 0:00:36]} Rf3 {[%emt 0:00:19]} 56. Ra8+ {[%emt 0:00:27]} Rf8 {[%emt 0:00:06]} 57. Rxf8+ {[%emt 0:00:19]} Kxf8 {[%emt 0:00:04]} 58. Bf6 {[%emt 0:00:03]} 1-0

[Event "Cracovia Festival-A 2023"]
[Site "Krakow"]
[Date "2023.12.31"]
[Round "5.42"]
[White "Baum, Jonasz"]
[Black "Pniaczek, Marek"]
[Result "1/2-1/2"]
[ECO "C83"]
[WhiteElo "2421"]
[BlackElo "2135"]
[Annotator "RC"]
[PlyCount "75"]
[EventDate "2023.12.24"]
[EventType "swiss"]
[EventCountry "POL"]
[SourceTitle "playchess.com"]
[Source "ChessBase"]
[SourceQuality "1"]
[TimeControl "40/5400+30:1800+30"]

1. e4 {[%emt 0:00:02]} e5 {[%emt 0:00:30]} 2. Nf3 {[%emt 0:00:06]} Nc6 {[%emt 0:00:05]} 3. Bb5 {[%emt 0:00:03]} a6 {[%emt 0:00:04]} 4. Ba4 {[%emt 0:00:04]} Nf6 {[%emt 0:00:03]} 5. O-O {[%emt 0:00:06]} Nxe4 {[%emt 0:00:03]} 6. d4 {[%emt 0:00:11]} b5 {[%emt 0:00:21]} 7. Bb3 {[%emt 0:00:05]} d5 {[%emt 0:00:04]} 8. dxe5 {[%emt 0:00:05]} Be6 {[%emt 0:00:04]} 9. c3 {[%emt 0:00:27]} Be7 {[%emt 0:00:35]} 10. Nbd2 {[%emt 0:00:11]} O-O {[%emt 0:00:09]} 11. Bc2 {[%emt 0:00:10]} f5 {[%emt 0:00:08]} 12. Nb3 {[%emt 0:00:13]} Qd7 {[%emt 0:00:07]} 13. Nfd4 {[%emt 0:01:12]} Nxd4 {[%emt 0:00:08]} 14. Nxd4 {[%emt 0:00:04]} c5 {[%emt 0:00:04]} 15. Nxe6 {[%emt 0:00:06]} Qxe6 {[%emt 0:00:03]} 16. f3 {[%emt 0:00:05]} Ng5 {[%emt 0:00:03]} 17. Bf4 {[%emt 0:00:05]} Rad8 {[%emt 0:04:05]} 18. Kh1 {[%emt 0:07:07]} Qb6 {[%emt 0:00:52]} 19. Bxg5 {[%emt 0:00:36]} Bxg5 {[%emt 0:00:02]} 20. f4 {[%emt 0:00:06]} Be7 {[%emt 0:00:10]} 21. g4 {[%emt 0:00:05]} d4 {[%emt 0:00:15]} 22. Bxf5 {[%emt 0:00:19]} dxc3 {[%emt 0:00:05]} 23. Qb3+ {[%emt 0:00:03]} Kh8 {[%emt 0:00:02]} 24. Qxc3 {[%emt 0:00:23]} Qb7+ {[%emt 0:02:03]} 25. Qf3 {[%emt 0:00:35]} Qxf3+ {[%emt 0:00:01]} 26. Rxf3 {[%emt 0:00:07]} g6 {[%emt 0:00:01]} 27. Be6 {[%emt 0:10:16]} Rd2 {[%emt 0:03:45]} 28. b3 {[%emt 0:01:00]} Re2 {[%emt 0:04:07]} 29. Raf1 {[%emt 0:33:29]} g5 {[%emt 0:17:12]} 30. Bf5 {[%emt 0:09:27]} gxf4 {[%emt 0:05:47]} 31. e6 {[%emt 0:02:30]} Rd8 {[%emt 0:21:19]} 32. R1f2 {[%emt 0:11:28]} Rxf2 {[%emt 0:18:20]} 33. Rxf2 {[%emt 0:00:02]} Rd4 {[%emt 0:00:25]} 34. Kg2 {[%emt 0:01:13]} Kg7 {[%emt 0:01:03]} 35. Kf3 {[%emt 0:00:58]} h6 {[%emt 0:02:48]} 36. Re2 {[%emt 0:01:34]} Kf6 {[%emt 0:00:34]} 37. h4 {[%emt 0:07:20]} a5 {[%emt 0:02:38]} 38. Bc2 {[%emt 0:07:31]} 1/2-1/2

[Event "Cracovia Festival-A 2023"]
[Site "Krakow"]
[Date "2023.12.31"]
[Round "5.43"]
[White "Manko, Mariia"]
[Black "Marszalek, Maciej"]
[Result "0-1"]
[ECO "A62"]
[WhiteElo "2128"]
[BlackElo "2269"]
[Annotator "RC"]
[PlyCount "64"]
[EventDate "2023.12.24"]
[EventType "swiss"]
[EventCountry "POL"]
[SourceTitle "playchess.com"]
[Source "ChessBase"]
[SourceQuality "1"]
[TimeControl "40/5400+30:1800+30"]

1. d4 {[%emt 0:03:10]} Nf6 {[%emt 0:00:05]} 2. c4 {[%emt 0:00:06]} e6 {[%emt 0:00:06]} 3. g3 {[%emt 0:00:16]} c5 {[%emt 0:00:05]} 4. d5 {[%emt 0:00:05]} exd5 {[%emt 0:00:09]} 5. cxd5 {[%emt 0:00:06]} d6 {[%emt 0:00:05]} 6. Nc3 {[%emt 0:00:15]} g6 {[%emt 0:00:08]} 7. Bg2 {[%emt 0:00:06]} Bg7 {[%emt 0:00:08]} 8. Nf3 {[%emt 0:00:06]} O-O {[%emt 0:00:13]} 9. O-O {[%emt 0:00:06]} Re8 {[%emt 0:00:05]} 10. Bf4 {[%emt 0:00:07]} Bf5 {[%emt 0:00:17]} 11. Nh4 {[%emt 0:00:07]} Bc8 {[%emt 0:00:13]} 12. Qd2 {[%emt 0:09:40]} a6 {[%emt 0:02:08]} 13. a4 {[%emt 0:00:08]} Qe7 {[%emt 0:01:37]} 14. e4 {[%emt 0:12:44]} Nbd7 {[%emt 0:01:35]} 15. Nf3 {[%emt 0:07:41]} Ng4 {[%emt 0:00:49]} 16. Rab1 {[%emt 0:02:00]} Nde5 {[%emt 0:02:35]} 17. Ne1 {[%emt 0:07:06]} b5 {[%emt 0:06:36]} 18. h3 {[%emt 0:12:10]} b4 {[%emt 0:05:30]} 19. hxg4 {[%emt 0:06:01]} bxc3 {[%emt 0:00:08]} 20. bxc3 {[%emt 0:03:14]} Bxg4 {[%emt 0:02:10]} 21. Bg5 {[%emt 0:03:00]} f6 {[%emt 0:04:34]} 22. Bh6 {[%emt 0:03:26]} Bxh6 {[%emt 0:01:15]} 23. Qf4 Bg5 24. Qxg5 {[%emt 0:00:49]} Be2 {[%emt 0:00:42]} 25. Qh6 {[%emt 0:02:26]} Bxf1 {[%emt 0:01:35]} 26. Nc2 {[%emt 0:00:26]} Rab8 {[%emt 0:00:55]} 27. Rxf1 {[%emt 0:01:05]} Rb5 28. Ne3 Rb3 {[%emt 0:01:30]} 29. f4 {[%emt 0:04:03]} Nf7 {[%emt 0:01:19]} 30. Qh3 {[%emt 0:02:51]} Rxc3 {[%emt 0:00:59]} 31. g4 {[%emt 0:00:46]} Qd7 {[%emt 0:02:48]} 32. Re1 {[%emt 0:03:41]} Qxa4 {[%emt 0:01:14]} 0-1

[Event "Cracovia Festival-A 2023"]
[Site "Krakow"]
[Date "2023.12.31"]
[Round "5.44"]
[White "Kaim, Piotr"]
[Black "Ramirez Garcia, Jorge Alberto"]
[Result "0-1"]
[ECO "B27"]
[WhiteElo "2127"]
[BlackElo "2249"]
[Annotator "RC"]
[PlyCount "100"]
[EventDate "2023.12.24"]
[EventType "swiss"]
[EventCountry "POL"]
[SourceTitle "playchess.com"]
[Source "ChessBase"]
[SourceQuality "1"]
[TimeControl "40/5400+30:1800+30"]

1. e4 {[%emt 0:00:17]} c5 {[%emt 0:03:24]} 2. Nf3 {[%emt 0:02:14]} g6 {[%emt 0:00:07]} 3. c3 {[%emt 0:00:42]} d5 {[%emt 0:00:11]} 4. e5 {[%emt 0:01:27]} Nc6 {[%emt 0:00:28]} 5. d4 {[%emt 0:08:52]} cxd4 {[%emt 0:00:09]} 6. cxd4 {[%emt 0:00:05]} Bg4 {[%emt 0:00:11]} 7. Bb5 {[%emt 0:09:57]} Qb6 {[%emt 0:00:06]} 8. Nc3 {[%emt 0:10:28]} e6 {[%emt 0:02:15]} 9. Be3 {[%emt 0:02:09]} Nge7 {[%emt 0:02:38]} 10. O-O {[%emt 0:01:15]} Bg7 {[%emt 0:05:51]} 11. a3 {[%emt 0:08:14]} O-O {[%emt 0:09:38]} 12. Be2 {[%emt 0:00:53]} f6 {[%emt 0:07:19]} 13. exf6 {[%emt 0:08:37]} Bxf6 {[%emt 0:00:18]} 14. Ng5 {[%emt 0:05:38]} Bxe2 {[%emt 0:02:43]} 15. Nxe2 {[%emt 0:01:03]} Bxg5 {[%emt 0:01:30]} 16. Bxg5 {[%emt 0:00:04]} Nf5 {[%emt 0:00:14]} 17. Be3 {[%emt 0:07:50]} Nxe3 {[%emt 0:07:42]} 18. fxe3 {[%emt 0:00:04]} Rxf1+ {[%emt 0:00:15]} 19. Qxf1 {[%emt 0:00:38]} Qxb2 {[%emt 0:00:53]} 20. Nf4 {[%emt 0:02:25]} Rf8 {[%emt 0:03:35]} 21. Qc1 {[%emt 0:01:34]} Qxc1+ {[%emt 0:01:12]} 22. Rxc1 {[%emt 0:02:02]} Kf7 {[%emt 0:12:20]} 23. h4 {[%emt 0:01:28]} Ke7 {[%emt 0:01:27]} 24. h5 {[%emt 0:00:51]} g5 {[%emt 0:01:09]} 25. Nd3 {[%emt 0:00:24]} Kd6 {[%emt 0:00:32]} 26. Nc5 {[%emt 0:03:00]} Rf7 {[%emt 0:01:04]} 27. Kh2 {[%emt 0:01:02]} e5 {[%emt 0:04:59]} 28. dxe5+ {[%emt 0:05:22]} Nxe5 {[%emt 0:00:11]} 29. Nb3 {[%emt 0:00:18]} Ng4+ {[%emt 0:01:15]} 30. Kg3 {[%emt 0:00:14]} Nxe3 {[%emt 0:00:16]} 31. Rc8 {[%emt 0:01:37]} Nf5+ {[%emt 0:05:55]} 32. Kg4 {[%emt 0:00:49]} h6 {[%emt 0:00:30]} 33. Rg8 {[%emt 0:05:24]} Ne3+ {[%emt 0:08:50]} 34. Kh3 {[%emt 0:00:50]} Nf5 {[%emt 0:01:44]} 35. Rg6+ {[%emt 0:00:57]} Ke5 {[%emt 0:00:38]} 36. Nd2 {[%emt 0:03:45]} Kf4 {[%emt 0:03:17]} 37. g4 {[%emt 0:00:38]} Ne3 {[%emt 0:01:00]} 38. Rxh6 {[%emt 0:00:39]} Nxg4 {[%emt 0:00:22]} 39. Rh8 {[%emt 0:00:41]} Nf6 {[%emt 0:01:07]} 40. Kg2 {[%emt 0:00:00]} g4 {[%emt 0:00:00]} 41. Nf1 {[%emt 0:04:45]} Rh7 {[%emt 0:08:48]} 42. Rf8 {[%emt 0:02:40]} Kg5 {[%emt 0:01:35]} 43. Ng3 {[%emt 0:00:58]} Nxh5 {[%emt 0:01:07]} 44. Nxh5 {[%emt 0:00:25]} Kxh5 {[%emt 0:02:03]} 45. Rf5+ {[%emt 0:00:31]} Kh4 {[%emt 0:00:10]} 46. Rxd5 {[%emt 0:00:04]} Rc7 {[%emt 0:00:19]} 47. Rd3 {[%emt 0:02:52]} Rc2+ {[%emt 0:00:11]} 48. Kg1 {[%emt 0:00:04]} Ra2 {[%emt 0:01:08]} 49. Rb3 {[%emt 0:00:24]} b6 {[%emt 0:00:09]} 50. Rc3 {[%emt 0:00:43]} g3 {[%emt 0:00:25]} 0-1

[Event "Cracovia Festival-A 2023"]
[Site "Krakow"]
[Date "2023.12.31"]
[Round "5.45"]
[White "Zalega, Maciej"]
[Black "Panek, Bartosz"]
[Result "1/2-1/2"]
[ECO "A18"]
[WhiteElo "2113"]
[BlackElo "2232"]
[Annotator "RC"]
[PlyCount "75"]
[EventDate "2023.12.24"]
[EventType "swiss"]
[EventCountry "POL"]
[SourceTitle "playchess.com"]
[Source "ChessBase"]
[SourceQuality "1"]
[TimeControl "40/5400+30:1800+30"]

1. c4 {[%emt 0:00:03]} Nf6 {[%emt 0:00:34]} 2. Nc3 {[%emt 0:00:05]} e6 {[%emt 0:00:21]} 3. e4 {[%emt 0:00:05]} d6 {[%emt 0:05:44]} 4. d4 {[%emt 0:01:31]} c5 {[%emt 0:02:00]} 5. dxc5 {[%emt 0:11:34]} dxc5 {[%emt 0:00:06]} 6. Qxd8+ {[%emt 0:00:09]} Kxd8 {[%emt 0:00:03]} 7. Bg5 {[%emt 0:00:33]} h6 {[%emt 0:04:08]} 8. O-O-O+ {[%emt 0:04:49]} Bd7 {[%emt 0:00:23]} 9. Bh4 {[%emt 0:05:15]} g5 {[%emt 0:01:59]} 10. Bg3 {[%emt 0:00:03]} Nc6 {[%emt 0:00:21]} 11. h4 {[%emt 0:04:54]} g4 {[%emt 0:10:19]} 12. h5 {[%emt 0:00:28]} Be7 {[%emt 0:07:47]} 13. Be2 {[%emt 0:03:49]} e5 {[%emt 0:01:09]} 14. Bd3 {[%emt 0:20:37]} Ne8 {[%emt 0:04:06]} 15. f4 {[%emt 0:03:41]} f6 {[%emt 0:06:00]} 16. Nge2 {[%emt 0:02:04]} Be6 {[%emt 0:05:23]} 17. Nd5 {[%emt 0:01:40]} Bd6 {[%emt 0:02:31]} 18. Bc2 {[%emt 0:06:40]} Nd4 {[%emt 0:05:23]} 19. Nxd4 {[%emt 0:01:11]} cxd4 {[%emt 0:00:25]} 20. fxe5 {[%emt 0:12:46]} Bxe5 {[%emt 0:03:01]} 21. Bf2 {[%emt 0:01:05]} Bxd5 {[%emt 0:03:00]} 22. exd5 {[%emt 0:03:22]} Nd6 {[%emt 0:02:52]} 23. Bxd4 {[%emt 0:02:54]} Nxc4 {[%emt 0:00:45]} 24. Bf5 {[%emt 0:03:06]} Ke7 {[%emt 0:02:06]} 25. b3 {[%emt 0:02:42]} Nd6 {[%emt 0:00:43]} 26. Be6 {[%emt 0:00:45]} Nb5 {[%emt 0:00:31]} 27. Bxe5 {[%emt 0:02:10]} fxe5 {[%emt 0:00:06]} 28. Bxg4 {[%emt 0:00:13]} Rhg8 {[%emt 0:00:49]} 29. Be6 {[%emt 0:01:50]} Rxg2 {[%emt 0:01:24]} 30. Rd2 {[%emt 0:02:19]} Rxd2 {[%emt 0:01:17]} 31. Kxd2 {[%emt 0:00:02]} Nd4 {[%emt 0:00:19]} 32. Ke3 {[%emt 0:01:28]} Nxe6 {[%emt 0:01:15]} 33. dxe6 {[%emt 0:00:02]} Kxe6 {[%emt 0:03:07]} 34. Rg1 {[%emt 0:00:06]} Rf8 {[%emt 0:00:38]} 35. Rg6+ {[%emt 0:00:22]} Rf6 {[%emt 0:00:05]} 36. Rg7 {[%emt 0:00:02]} Rf7 {[%emt 0:00:09]} 37. Rg6+ {[%emt 0:00:07]} Rf6 {[%emt 0:00:07]} 38. Rg7 {[%emt 0:00:03]} 1/2-1/2

[Event "Cracovia Festival-A 2023"]
[Site "Krakow"]
[Date "2023.12.31"]
[Round "5.46"]
[White "Mirski, Stanislaw"]
[Black "Bilczewski, Kacper"]
[Result "1-0"]
[ECO "D02"]
[WhiteElo "2187"]
[BlackElo "2125"]
[Annotator "RC"]
[PlyCount "67"]
[EventDate "2023.12.24"]
[EventType "swiss"]
[EventCountry "POL"]
[SourceTitle "playchess.com"]
[Source "ChessBase"]
[SourceQuality "1"]
[TimeControl "40/5400+30:1800+30"]

1. d4 {[%emt 0:00:03]} d5 {[%emt 0:03:30]} 2. Nf3 {[%emt 0:00:02]} Nf6 {[%emt 0:00:06]} 3. g3 {[%emt 0:00:05]} c6 {[%emt 0:00:04]} 4. Bg2 {[%emt 0:00:05]} Bg4 {[%emt 0:00:14]} 5. c4 {[%emt 0:00:09]} e6 {[%emt 0:00:06]} 6. Qb3 {[%emt 0:03:07]} Qb6 {[%emt 0:00:09]} 7. Nc3 {[%emt 0:00:38]} Nbd7 {[%emt 0:02:57]} 8. h3 {[%emt 0:16:23]} Bf5 {[%emt 0:04:26]} 9. c5 {[%emt 0:03:24]} Qxb3 {[%emt 0:02:31]} 10. axb3 {[%emt 0:00:02]} a6 {[%emt 0:04:10]} 11. b4 {[%emt 0:04:19]} Ne4 {[%emt 0:00:48]} 12. b5 {[%emt 0:09:47]} Nxc3 {[%emt 0:00:06]} 13. bxc6 {[%emt 0:00:41]} bxc6 {[%emt 0:00:04]} 14. bxc3 {[%emt 0:00:06]} Be7 {[%emt 0:00:15]} 15. Bf4 {[%emt 0:09:08]} O-O {[%emt 0:00:54]} 16. O-O {[%emt 0:00:03]} f6 {[%emt 0:05:40]} 17. g4 {[%emt 0:14:24]} Bg6 {[%emt 0:06:30]} 18. Nd2 {[%emt 0:02:47]} e5 {[%emt 0:01:02]} 19. Bg3 {[%emt 0:00:01]} Rfb8 {[%emt 0:00:16]} 20. Ra2 {[%emt 0:00:02]} Ra7 {[%emt 0:06:20]} 21. Rfa1 {[%emt 0:00:36]} Rba8 {[%emt 0:00:57]} 22. c4 {[%emt 0:16:52]} exd4 {[%emt 0:04:49]} 23. cxd5 {[%emt 0:00:01]} Nxc5 {[%emt 0:15:41]} 24. dxc6 {[%emt 0:00:51]} Bf7 {[%emt 0:02:45]} 25. Ra5 {[%emt 0:03:09]} Rc8 {[%emt 0:02:48]} 26. Rc1 {[%emt 0:01:45]} Ne6 {[%emt 0:08:20]} 27. Nc4 {[%emt 0:00:50]} Nc7 {[%emt 0:08:37]} 28. Nb6 {[%emt 0:02:07]} Rd8 {[%emt 0:01:51]} 29. Bxc7 {[%emt 0:00:24]} Rxc7 {[%emt 0:00:03]} 30. Rxa6 {[%emt 0:00:07]} Rd6 {[%emt 0:03:45]} 31. Ra8+ {[%emt 0:02:34]} Rd8 {[%emt 0:00:08]} 32. Rxd8+ {[%emt 0:00:52]} Bxd8 {[%emt 0:00:19]} 33. Na8 {[%emt 0:00:02]} Rc8 {[%emt 0:00:25]} 34. c7 {[%emt 0:00:06]} 1-0

[Event "Cracovia Festival-A 2023"]
[Site "Krakow"]
[Date "2023.12.31"]
[Round "5.47"]
[White "Gaurav Rajesh Zagade"]
[Black "Kovalevsky, Stanislav"]
[Result "1-0"]
[ECO "A06"]
[WhiteElo "2126"]
[BlackElo "2163"]
[Annotator "RC"]
[PlyCount "95"]
[EventDate "2023.12.24"]
[EventType "swiss"]
[EventCountry "POL"]
[SourceTitle "playchess.com"]
[Source "ChessBase"]
[SourceQuality "1"]
[TimeControl "40/5400+30:1800+30"]

1. Nf3 {[%emt 0:00:05]} d5 {[%emt 0:00:04]} 2. c4 {[%emt 0:00:21]} c6 {[%emt 0:00:11]} 3. g3 {[%emt 0:00:50]} Nf6 {[%emt 0:00:12]} 4. Bg2 {[%emt 0:00:20]} e6 {[%emt 0:01:20]} 5. b3 {[%emt 0:01:50]} Nbd7 {[%emt 0:01:11]} 6. Bb2 {[%emt 0:02:01]} Bd6 {[%emt 0:02:44]} 7. d4 {[%emt 0:03:24]} O-O {[%emt 0:03:09]} 8. O-O {[%emt 0:01:28]} Ne4 {[%emt 0:08:54]} 9. Nbd2 {[%emt 0:06:58]} f5 {[%emt 0:00:32]} 10. Ne1 {[%emt 0:02:03]} a5 {[%emt 0:14:40]} 11. Nd3 {[%emt 0:07:14]} a4 {[%emt 0:01:31]} 12. Rc1 {[%emt 0:11:29]} Nxd2 {[%emt 0:14:56]} 13. Qxd2 {[%emt 0:00:08]} Nf6 {[%emt 0:00:09]} 14. c5 {[%emt 0:02:06]} Bc7 {[%emt 0:00:17]} 15. b4 {[%emt 0:00:29]} Bd7 {[%emt 0:04:57]} 16. a3 {[%emt 0:01:11]} Be8 {[%emt 0:00:49]} 17. Rce1 {[%emt 0:01:30]} Ne4 {[%emt 0:05:39]} 18. Qc2 {[%emt 0:02:50]} Qf6 {[%emt 0:04:42]} 19. e3 {[%emt 0:06:41]} Qh6 {[%emt 0:04:43]} 20. Ne5 {[%emt 0:05:09]} g5 {[%emt 0:12:19]} 21. f3 {[%emt 0:02:11]} Nf6 {[%emt 0:00:02]} 22. e4 {[%emt 0:10:34]} f4 {[%emt 0:01:24]} 23. Bc1 {[%emt 0:07:08]} Bg6 {[%emt 0:02:19]} 24. gxf4 {[%emt 0:05:18]} gxf4 {[%emt 0:00:09]} 25. Nxg6 {[%emt 0:01:43]} Qxg6 {[%emt 0:01:05]} 26. Re2 {[%emt 0:01:42]} e5 {[%emt 0:05:45]} 27. Kh1 {[%emt 0:04:15]} exd4 {[%emt 0:02:21]} 28. Rg1 {[%emt 0:01:38]} Kh8 {[%emt 0:00:10]} 29. Qd1 {[%emt 0:02:21]} dxe4 {[%emt 0:02:14]} 30. Qxd4 {[%emt 0:01:23]} Rae8 {[%emt 0:02:27]} 31. Rxe4 {[%emt 0:01:28]} Rxe4 {[%emt 0:01:16]} 32. fxe4 {[%emt 0:00:05]} Qh5 {[%emt 0:02:58]} 33. Bb2 {[%emt 0:00:29]} h6 {[%emt 0:00:03]} 34. Qf2 {[%emt 0:04:10]} Kh7 {[%emt 0:01:05]} 35. Bf3 {[%emt 0:00:43]} Qe8 {[%emt 0:00:29]} 36. e5 {[%emt 0:00:21]} Bxe5 {[%emt 0:00:40]} 37. Qc2+ {[%emt 0:01:10]} Kh8 {[%emt 0:00:11]} 38. Re1 {[%emt 0:00:46]} Bxb2 {[%emt 0:01:16]} 39. Rxe8 {[%emt 0:00:10]} Rxe8 {[%emt 0:00:03]} 40. Qxb2 {[%emt 0:00:00]} Kg7 {[%emt 0:00:00]} 41. Qd4 {[%emt 0:00:28]} Re3 {[%emt 0:00:25]} 42. Qxf4 {[%emt 0:02:27]} Rxa3 {[%emt 0:00:01]} 43. Qg3+ {[%emt 0:00:32]} Kh8 {[%emt 0:00:11]} 44. Qb8+ {[%emt 0:00:22]} Kg7 {[%emt 0:00:02]} 45. Qxb7+ {[%emt 0:00:07]} Kg6 {[%emt 0:00:04]} 46. Qxc6 {[%emt 0:00:23]} Ra1+ {[%emt 0:00:02]} 47. Kg2 {[%emt 0:00:05]} a3 {[%emt 0:00:04]} 48. Qa6 {[%emt 0:01:19]} 1-0

[Event "Cracovia Festival-A 2023"]
[Site "Krakow"]
[Date "2023.12.31"]
[Round "5.48"]
[White "Pacuszka, Tomasz"]
[Black "Hnatyshyn, Anastasiia"]
[Result "1/2-1/2"]
[ECO "A05"]
[WhiteElo "2124"]
[BlackElo "2152"]
[Annotator "RC"]
[PlyCount "87"]
[EventDate "2023.12.24"]
[EventType "swiss"]
[EventCountry "POL"]
[SourceTitle "playchess.com"]
[Source "ChessBase"]
[SourceQuality "1"]
[TimeControl "40/5400+30:1800+30"]

1. Nf3 {[%emt 0:03:44]} Nf6 {[%emt 0:00:07]} 2. b3 {[%emt 0:00:08]} d5 {[%emt 0:00:20]} 3. Bb2 {[%emt 0:00:16]} g6 {[%emt 0:01:15]} 4. e3 {[%emt 0:06:27]} Bg7 {[%emt 0:00:28]} 5. d3 {[%emt 0:02:53]} O-O {[%emt 0:01:10]} 6. Nbd2 {[%emt 0:00:06]} Bg4 {[%emt 0:04:01]} 7. Be2 {[%emt 0:03:00]} Bxf3 {[%emt 0:01:57]} 8. Nxf3 {[%emt 0:00:54]} Nbd7 {[%emt 0:00:27]} 9. O-O {[%emt 0:00:14]} c6 {[%emt 0:01:21]} 10. c4 {[%emt 0:01:11]} Re8 {[%emt 0:05:47]} 11. Qc2 {[%emt 0:05:47]} e5 {[%emt 0:02:16]} 12. Rfd1 {[%emt 0:02:37]} Rc8 {[%emt 0:07:00]} 13. Rac1 {[%emt 0:02:40]} c5 {[%emt 0:11:30]} 14. cxd5 {[%emt 0:06:01]} Nxd5 {[%emt 0:00:07]} 15. Qb1 {[%emt 0:00:34]} a6 {[%emt 0:02:56]} 16. Nd2 {[%emt 0:01:18]} b5 {[%emt 0:02:49]} 17. Bf3 {[%emt 0:00:34]} N7b6 {[%emt 0:00:40]} 18. Ne4 {[%emt 0:01:29]} Qe7 {[%emt 0:03:26]} 19. Ba3 {[%emt 0:07:57]} b4 {[%emt 0:00:28]} 20. Bb2 {[%emt 0:00:05]} f5 {[%emt 0:09:21]} 21. Nd2 {[%emt 0:01:11]} e4 {[%emt 0:00:55]} 22. dxe4 {[%emt 0:00:24]} Nc3 {[%emt 0:00:07]} 23. Bxc3 {[%emt 0:00:39]} bxc3 {[%emt 0:00:05]} 24. Nf1 {[%emt 0:01:08]} fxe4 {[%emt 0:01:06]} 25. Be2 {[%emt 0:00:21]} c4 {[%emt 0:02:17]} 26. Ng3 {[%emt 0:03:25]} h5 {[%emt 0:04:41]} 27. bxc4 {[%emt 0:06:30]} Na4 {[%emt 0:00:18]} 28. Qc2 {[%emt 0:01:49]} Nc5 {[%emt 0:00:31]} 29. Rd5 {[%emt 0:00:26]} h4 {[%emt 0:03:44]} 30. Nf1 {[%emt 0:00:08]} Rb8 {[%emt 0:00:59]} 31. Qd1 {[%emt 0:00:22]} Rb2 {[%emt 0:04:29]} 32. h3 {[%emt 0:01:02]} Rxa2 {[%emt 0:01:11]} 33. Nh2 {[%emt 0:00:44]} Nd3 {[%emt 0:04:28]} 34. Bxd3 {[%emt 0:04:04]} Rd2 {[%emt 0:00:05]} 35. Qf1 {[%emt 0:00:04]} exd3 {[%emt 0:00:20]} 36. Nf3 {[%emt 0:02:14]} Rc2 {[%emt 0:03:45]} 37. Rxd3 {[%emt 0:00:35]} Rxc1 {[%emt 0:00:42]} 38. Qxc1 {[%emt 0:00:04]} Qe4 {[%emt 0:00:26]} 39. Rxc3 {[%emt 0:03:55]} Bxc3 {[%emt 0:01:35]} 40. Qxc3 {[%emt 0:00:00]} Qb1+ {[%emt 0:00:00]} 41. Kh2 {[%emt 0:00:49]} Qb8+ {[%emt 0:12:25]} 42. Kg1 {[%emt 0:00:19]} Qb1+ {[%emt 0:02:43]} 43. Kh2 {[%emt 0:00:05]} Qb8+ {[%emt 0:00:37]} 44. Kg1 1/2-1/2